[Event "RUS-ch Men Rapid 2019"]
[Site "Sochi"]
[Date "2019.10.15"]
[Round "2.21"]
[White "Gorbatov, Alexej"]
[Black "Zakhartsov, Vladimir"]
[Result "1/2-1/2"]
[ECO "B93"]
[WhiteElo "2355"]
[BlackElo "2527"]
[Annotator "ChessBase"]
[PlyCount "63"]
[EventDate "2019.10.15"]
[EventType "swiss"]
[EventCountry "RUS"]
[SourceTitle "playchess.com"]
[Source "ChessBase"]
[SourceQuality "1"]
[TimeControl "900+10"]

1. e4 {[%emt 0:00:00]} c5 {[%emt 0:00:05]} 2. Nf3 {[%emt 0:00:00]} d6 {[%emt 0:00:11]} 3. d4 {[%emt 0:00:00]} Nf6 {[%emt 0:00:02]} 4. Nc3 {[%emt 0:00:00]} cxd4 {[%emt 0:00:04]} 5. Nxd4 {[%emt 0:00:00]} a6 {[%emt 0:00:04]} 6. f4 {[%emt 0:00:00]} e5 {[%emt 0:00:04]} 7. Nf3 {[%emt 0:00:02]} Qc7 {[%emt 0:00:04]} 8. Bd3 {[%emt 0:00:02]} Nbd7 {[%emt 0:00:04]} 9. Qe2 {[%emt 0:00:03]} b5 {[%emt 0:00:19]} 10. Bd2 {[%emt 0:03:45]} Bb7 {[%emt 0:00:37]} 11. a4 {[%emt 0:01:43]} b4 {[%emt 0:01:20]} 12. Na2 {[%emt 0:00:17]} a5 {[%emt 0:01:25]} 13. c3 {[%emt 0:00:04]} bxc3 {[%emt 0:03:59]} 14. Nxc3 {[%emt 0:00:10]} Be7 {[%emt 0:00:05]} 15. Nb5 {[%emt 0:01:09]} Qd8 {[%emt 0:00:35]} 16. b4 {[%emt 0:00:13]} O-O {[%emt 0:00:12]} 17. O-O {[%emt 0:05:06]} d5 {[%emt 0:01:30]} 18. fxe5 {[%emt 0:01:51]} dxe4 {[%emt 0:00:33]} 19. exf6 {[%emt 0:00:06]} Nxf6 {[%emt 0:00:02]} 20. Bc4 {[%emt 0:03:27]} exf3 {[%emt 0:00:11]} 21. gxf3 {[%emt 0:00:03]} Bxb4 {[%emt 0:00:30]} 22. Bxb4 {[%emt 0:00:15]} axb4 {[%emt 0:00:01]} 23. Qb2 {[%emt 0:00:12]} Qb6+ {[%emt 0:00:19]} 24. Qf2 {[%emt 0:00:17]} Qa5 {[%emt 0:00:25]} 25. Bb3 {[%emt 0:00:08]} Rad8 {[%emt 0:00:16]} 26. Rad1 {[%emt 0:00:07]} h6 {[%emt 0:00:22]} 27. Kg2 {[%emt 0:00:17]} Rxd1 {[%emt 0:00:14]} 28. Rxd1 {[%emt 0:00:01]} Rd8 {[%emt 0:00:09]} 29. Qa7 {[%emt 0:00:06]} Ba6 {[%emt 0:00:26]} 30. Rxd8+ {[%emt 0:00:09]} Qxd8 {[%emt 0:00:02]} 31. Qxa6 {[%emt 0:00:00]} Qd2+ {[%emt 0:00:01]} 32. Kh3 {[%emt 0:00:18]} 1/2-1/2

[Event "RUS-ch Men Rapid 2019"]
[Site "Sochi"]
[Date "2019.10.15"]
[Round "2.22"]
[White "Bespalov, Konstantin"]
[Black "Golubov, Saveliy"]
[Result "0-1"]
[ECO "B06"]
[WhiteElo "2258"]
[BlackElo "2518"]
[Annotator "ChessBase"]
[PlyCount "96"]
[EventDate "2019.10.15"]
[EventType "swiss"]
[EventCountry "RUS"]
[SourceTitle "playchess.com"]
[Source "ChessBase"]
[SourceQuality "1"]
[TimeControl "900+10"]

1. e4 {[%emt 0:00:00]} g6 {[%emt 0:00:01]} 2. Nc3 {[%emt 0:00:03]} Bg7 {[%emt 0:00:02]} 3. g3 {[%emt 0:00:03]} d6 {[%emt 0:00:46]} 4. Bg2 {[%emt 0:00:04]} Nf6 {[%emt 0:00:03]} 5. Nge2 {[%emt 0:00:13]} O-O {[%emt 0:00:11]} 6. d3 {[%emt 0:00:22]} e5 {[%emt 0:03:18]} 7. h3 {[%emt 0:00:18]} Nc6 {[%emt 0:01:22]} 8. Be3 {[%emt 0:00:08]} Be6 {[%emt 0:00:38]} 9. Qd2 {[%emt 0:02:11]} d5 {[%emt 0:00:24]} 10. exd5 {[%emt 0:00:10]} Nxd5 {[%emt 0:00:02]} 11. Bh6 {[%emt 0:00:04]} Bxh6 {[%emt 0:04:26]} 12. Qxh6 {[%emt 0:00:02]} Nd4 {[%emt 0:00:03]} 13. Qd2 {[%emt 0:02:01]} c5 {[%emt 0:00:30]} 14. h4 {[%emt 0:02:47]} Nb4 {[%emt 0:01:48]} 15. Nxd4 {[%emt 0:00:41]} exd4 {[%emt 0:01:14]} 16. Ne4 {[%emt 0:00:12]} Bd5 {[%emt 0:00:29]} 17. O-O {[%emt 0:04:12]} f5 {[%emt 0:00:22]} 18. Ng5 {[%emt 0:00:07]} Bxg2 {[%emt 0:00:39]} 19. Kxg2 {[%emt 0:00:02]} Qd5+ {[%emt 0:00:01]} 20. Kh2 {[%emt 0:00:02]} Rae8 {[%emt 0:00:15]} 21. Rae1 {[%emt 0:01:37]} Nc6 {[%emt 0:00:02]} 22. f4 {[%emt 0:00:41]} h6 {[%emt 0:00:34]} 23. Nf3 {[%emt 0:00:19]} Qxa2 {[%emt 0:00:07]} 24. h5 {[%emt 0:00:13]} gxh5 {[%emt 0:00:56]} 25. Nh4 {[%emt 0:00:03]} Qf7 {[%emt 0:00:06]} 26. Qg2 {[%emt 0:00:59]} Nb4 {[%emt 0:00:11]} 27. Re5 {[%emt 0:00:01]} Rxe5 {[%emt 0:00:15]} 28. fxe5 {[%emt 0:00:01]} Qe6 {[%emt 0:00:02]} 29. Qxb7 {[%emt 0:00:10]} Nxc2 {[%emt 0:00:34]} 30. Rc1 {[%emt 0:00:26]} Ne3 {[%emt 0:00:11]} 31. Rxc5 {[%emt 0:00:03]} f4 {[%emt 0:00:04]} 32. Qf3 {[%emt 0:00:57]} fxg3+ {[%emt 0:00:12]} 33. Qxg3+ {[%emt 0:00:03]} Ng4+ {[%emt 0:00:01]} 34. Kg1 {[%emt 0:00:06]} Qf7 {[%emt 0:00:30]} 35. Rc1 {[%emt 0:00:02]} Kh7 {[%emt 0:00:12]} 36. Qg2 {[%emt 0:00:24]} Rg8 {[%emt 0:00:04]} 37. e6 {[%emt 0:00:39]} Qxe6 {[%emt 0:00:07]} 38. Qe4+ {[%emt 0:00:03]} Qxe4 {[%emt 0:00:03]} 39. dxe4 {[%emt 0:00:00]} d3 {[%emt 0:00:11]} 40. Kf1 {[%emt 0:00:08]} Rf8+ {[%emt 0:00:26]} 41. Ke1 {[%emt 0:00:05]} Rf2 {[%emt 0:00:04]} 42. Rc7+ {[%emt 0:00:01]} Kg8 {[%emt 0:00:01]} 43. Nf5 {[%emt 0:00:08]} Re2+ {[%emt 0:00:08]} 44. Kf1 {[%emt 0:00:35]} Nh2+ {[%emt 0:00:02]} 45. Kg1 {[%emt 0:00:02]} Nf3+ {[%emt 0:00:01]} 46. Kf1 {[%emt 0:00:01]} Nd2+ {[%emt 0:00:01]} 47. Kg1 {[%emt 0:00:04]} Nxe4 {[%emt 0:00:02]} 48. Kf1 {[%emt 0:00:56]} Rf2+ {[%emt 0:00:02] b4} 0-1

[Event "RUS-ch Men Rapid 2019"]
[Site "Sochi"]
[Date "2019.10.15"]
[Round "2.23"]
[White "Vastrukhin, Oleg"]
[Black "Volovich, Vasily"]
[Result "1-0"]
[ECO "A00"]
[WhiteElo "2512"]
[BlackElo "2120"]
[Annotator "ChessBase"]
[PlyCount "85"]
[EventDate "2019.10.15"]
[EventType "swiss"]
[EventCountry "RUS"]
[SourceTitle "playchess.com"]
[Source "ChessBase"]
[SourceQuality "1"]
[TimeControl "900+10"]

1. g3 {[%emt 0:00:00]} Nf6 {[%emt 0:00:00]} 2. Bg2 {[%emt 0:00:00]} g6 {[%emt 0:00:01]} 3. c4 {[%emt 0:00:00]} Bg7 {[%emt 0:00:08]} 4. Nc3 {[%emt 0:00:00]} O-O {[%emt 0:00:08]} 5. e3 {[%emt 0:00:00]} c5 {[%emt 0:00:15]} 6. Nge2 {[%emt 0:00:00]} Nc6 {[%emt 0:00:10]} 7. O-O {[%emt 0:00:02]} d6 {[%emt 0:00:16]} 8. b3 {[%emt 0:00:09]} Bf5 {[%emt 0:00:37]} 9. Bb2 {[%emt 0:00:16]} Qd7 {[%emt 0:00:15]} 10. d4 {[%emt 0:00:58]} Bh3 {[%emt 0:01:30]} 11. Bxh3 {[%emt 0:00:34]} Qxh3 {[%emt 0:00:02]} 12. Nf4 {[%emt 0:00:00]} Qf5 {[%emt 0:01:03]} 13. d5 {[%emt 0:00:13]} Ne5 {[%emt 0:00:43]} 14. f3 {[%emt 0:00:11]} a6 {[%emt 0:01:31]} 15. e4 {[%emt 0:00:07]} Qd7 {[%emt 0:00:14]} 16. Ng2 {[%emt 0:00:15]} Qc7 {[%emt 0:01:03]} 17. Ne3 {[%emt 0:00:21]} Ned7 {[%emt 0:01:23]} 18. Qe2 {[%emt 0:00:06]} Rab8 {[%emt 0:01:19]} 19. a4 {[%emt 0:00:09]} Qb6 {[%emt 0:02:10]} 20. Qc2 {[%emt 0:00:06]} Bh6 {[%emt 0:00:37]} 21. Ng2 {[%emt 0:01:40]} e5 {[%emt 0:01:08]} 22. dxe6 {[%emt 0:00:45]} fxe6 {[%emt 0:00:03]} 23. Rad1 {[%emt 0:00:03]} Rbd8 {[%emt 0:00:37]} 24. f4 {[%emt 0:00:32]} Nb8 {[%emt 0:00:43]} 25. e5 {[%emt 0:02:16]} dxe5 {[%emt 0:00:13]} 26. fxe5 {[%emt 0:00:02]} Rxd1 {[%emt 0:00:39]} 27. Rxd1 {[%emt 0:00:40]} Nfd7 {[%emt 0:00:37]} 28. Ne4 {[%emt 0:00:04]} Bg7 {[%emt 0:00:26]} 29. Rd6 {[%emt 0:00:07]} Qc7 {[%emt 0:00:55]} 30. Nf4 {[%emt 0:00:03]} Nxe5 {[%emt 0:00:05]} 31. Nxe6 {[%emt 0:00:49]} Nf3+ {[%emt 0:00:38]} 32. Kh1 {[%emt 0:00:01]} Qf7 {[%emt 0:00:33]} 33. Bxg7 {[%emt 0:00:26]} Ne1 {[%emt 0:00:17]} 34. Nf6+ {[%emt 0:00:03]} Qxf6 {[%emt 0:00:06]} 35. Bxf6 {[%emt 0:00:01]} Nxc2 {[%emt 0:00:03]} 36. Nxf8 {[%emt 0:00:02]} Kxf8 {[%emt 0:00:03]} 37. Rd8+ {[%emt 0:00:14]} Kf7 {[%emt 0:00:01]} 38. Rxb8 {[%emt 0:00:02]} Kxf6 {[%emt 0:00:01]} 39. Rxb7 {[%emt 0:00:02]} Ke5 {[%emt 0:00:04]} 40. Rxh7 {[%emt 0:00:24]} Kd4 {[%emt 0:00:01]} 41. Rh6 {[%emt 0:00:11]} Kc3 {[%emt 0:00:18]} 42. Rxg6 {[%emt 0:00:02]} Kxb3 {[%emt 0:00:20]} 43. h4 {[%emt 0:00:03]} 1-0

[Event "RUS-ch Men Rapid 2019"]
[Site "Sochi"]
[Date "2019.10.15"]
[Round "2.24"]
[White "Belozerov, Andrei"]
[Black "Nazaryev, Sergey"]
[Result "1-0"]
[ECO "B15"]
[WhiteElo "2506"]
[BlackElo "2270"]
[Annotator "ChessBase"]
[PlyCount "62"]
[EventDate "2019.10.15"]
[EventType "swiss"]
[EventCountry "RUS"]
[SourceTitle "playchess.com"]
[Source "ChessBase"]
[SourceQuality "1"]
[TimeControl "900+10"]

1. e4 {[%emt 0:00:00]} c6 {[%emt 0:00:00]} 2. d4 {[%emt 0:00:00]} d5 {[%emt 0:00:00]} 3. Nd2 {[%emt 0:00:00]} dxe4 4. Nxe4 {[%emt 0:00:00]} Nf6 {[%emt 0:00:00]} 5. Nxf6+ {[%emt 0:00:00]} exf6 {[%emt 0:00:00]} 6. c3 {[%emt 0:00:03]} Bd6 {[%emt 0:00:00]} 7. Bd3 {[%emt 0:00:01]} O-O {[%emt 0:00:00]} 8. Qc2 {[%emt 0:00:01]} Re8+ {[%emt 0:00:00]} 9. Ne2 h5 10. Be3 {[%emt 0:00:13]} Nd7 {[%emt 0:00:55]} 11. O-O {[%emt 0:00:38]} Qc7 {[%emt 0:00:20]} 12. Ng3 {[%emt 0:01:31]} Bxg3 {[%emt 0:02:03]} 13. hxg3 {[%emt 0:00:03]} Nf8 {[%emt 0:00:02]} 14. Rfe1 {[%emt 0:02:44]} Be6 {[%emt 0:01:19]} 15. c4 {[%emt 0:00:38]} Rad8 {[%emt 0:01:10]} 16. Rad1 {[%emt 0:00:15]} Bg4 {[%emt 0:00:18]} 17. f3 {[%emt 0:00:29]} Bc8 {[%emt 0:00:30]} 18. Qf2 {[%emt 0:00:07]} b6 {[%emt 0:00:04]} 19. Bc2 {[%emt 0:00:52]} Be6 {[%emt 0:00:20]} 20. Bb3 {[%emt 0:01:50]} Bf5 {[%emt 0:00:50]} 21. d5 {[%emt 0:00:25]} cxd5 {[%emt 0:00:50]} 22. cxd5 {[%emt 0:00:02]} Ng6 {[%emt 0:00:26]} 23. Ba4 {[%emt 0:00:33]} Bd7 {[%emt 0:00:51]} 24. d6 {[%emt 0:00:49]} Qb8 {[%emt 0:00:30]} 25. Bc2 {[%emt 0:00:09]} Be6 {[%emt 0:00:23]} 26. Qd2 {[%emt 0:00:32]} Qc8 {[%emt 0:04:13]} 27. Rc1 {[%emt 0:00:44]} Qd7 {[%emt 0:00:30]} 28. Red1 {[%emt 0:00:02]} Ne5 {[%emt 0:00:52]} 29. Bf4 {[%emt 0:00:25]} Nc4 {[%emt 0:01:32]} 30. Qd4 {[%emt 0:00:05]} Rc8 {[%emt 0:01:31]} 31. Bd3 {[%emt 0:00:46]} Na5 {[%emt 0:00:41]} 1-0

[Event "RUS-ch Men Rapid 2019"]
[Site "Sochi"]
[Date "2019.10.15"]
[Round "2.25"]
[White "Kurbedinov, Ramis"]
[Black "Belyakov, Bogdan"]
[Result "0-1"]
[ECO "E63"]
[WhiteElo "2305"]
[BlackElo "2506"]
[Annotator "ChessBase"]
[PlyCount "70"]
[EventDate "2019.10.15"]
[EventType "swiss"]
[EventCountry "RUS"]
[SourceTitle "playchess.com"]
[Source "ChessBase"]
[SourceQuality "1"]
[TimeControl "900+10"]

1. Nf3 {[%emt 0:00:00]} Nf6 {[%emt 0:00:00]} 2. c4 {[%emt 0:00:00]} g6 {[%emt 0:00:00]} 3. Nc3 {[%emt 0:00:06]} Bg7 {[%emt 0:00:00]} 4. d4 {[%emt 0:00:10]} O-O {[%emt 0:00:00]} 5. g3 {[%emt 0:00:03]} d6 {[%emt 0:00:03]} 6. Bg2 {[%emt 0:00:02]} Nc6 {[%emt 0:00:02]} 7. O-O {[%emt 0:00:13]} a6 {[%emt 0:00:01]} 8. h3 {[%emt 0:00:48]} Bd7 {[%emt 0:00:03]} 9. d5 {[%emt 0:01:22]} Na5 {[%emt 0:00:04]} 10. Qd3 {[%emt 0:01:37]} c5 {[%emt 0:00:58]} 11. Nd2 {[%emt 0:03:01]} b5 {[%emt 0:00:14]} 12. Rb1 {[%emt 0:00:42]} bxc4 {[%emt 0:02:28]} 13. Nxc4 {[%emt 0:00:02]} Nxc4 {[%emt 0:00:03]} 14. Qxc4 {[%emt 0:00:01]} Qc8 {[%emt 0:00:54]} 15. Kh2 {[%emt 0:00:11]} Rb8 {[%emt 0:00:02]} 16. Qd3 {[%emt 0:03:23]} Rb4 {[%emt 0:01:02]} 17. Qc2 {[%emt 0:01:07]} Qb7 {[%emt 0:00:47]} 18. b3 {[%emt 0:01:21]} Rb8 {[%emt 0:00:03]} 19. Bd2 {[%emt 0:00:23]} Rb6 {[%emt 0:00:08]} 20. e4 {[%emt 0:00:45]} h5 {[%emt 0:00:34]} 21. f4 {[%emt 0:00:26]} Qc7 {[%emt 0:00:15]} 22. Rbe1 {[%emt 0:01:17]} Qc8 {[%emt 0:01:46]} 23. e5 {[%emt 0:00:20]} Bf5 {[%emt 0:00:02]} 24. Qd1 {[%emt 0:00:28]} Ne8 {[%emt 0:00:41]} 25. e6 {[%emt 0:00:09]} Nf6 {[%emt 0:00:44]} 26. exf7+ {[%emt 0:00:31]} Kxf7 {[%emt 0:00:01]} 27. Ne4 {[%emt 0:00:36]} Nxe4 {[%emt 0:00:07]} 28. Bxe4 {[%emt 0:00:02]} c4 {[%emt 0:02:03]} 29. Be3 {[%emt 0:00:25]} Rb4 {[%emt 0:01:28]} 30. Bxf5 {[%emt 0:00:13]} Qxf5 {[%emt 0:00:02]} 31. g4 {[%emt 0:00:07]} hxg4 {[%emt 0:00:08]} 32. hxg4 {[%emt 0:00:04]} Qf6 {[%emt 0:01:09]} 33. bxc4 {[%emt 0:00:23]} Rxc4 {[%emt 0:00:51]} 34. Kg3 {[%emt 0:00:08]} Rb2 {[%emt 0:00:27]} 35. Re2 {[%emt 0:00:24]} Rbb4 0-1

[Event "RUS-ch Men Rapid 2019"]
[Site "Sochi"]
[Date "2019.10.15"]
[Round "2.26"]
[White "Goryachkina, Aleksandra"]
[Black "Chizhikov, Vladislav"]
[Result "1-0"]
[ECO "C10"]
[WhiteElo "2504"]
[BlackElo "2273"]
[Annotator "ChessBase"]
[PlyCount "86"]
[EventDate "2019.10.15"]
[EventType "swiss"]
[EventCountry "RUS"]
[SourceTitle "playchess.com"]
[Source "ChessBase"]
[SourceQuality "1"]
[TimeControl "900+10"]

1. e4 {[%emt 0:00:00]} e6 {[%emt 0:00:00]} 2. d4 {[%emt 0:00:00]} d5 {[%emt 0:00:00]} 3. Nd2 {[%emt 0:00:00]} dxe4 {[%emt 0:00:03]} 4. Nxe4 {[%emt 0:00:02]} Nd7 {[%emt 0:00:08]} 5. g3 {[%emt 0:01:13]} Ngf6 {[%emt 0:00:23]} 6. Nxf6+ {[%emt 0:00:10]} Nxf6 {[%emt 0:00:03]} 7. Bg2 {[%emt 0:00:07]} c5 {[%emt 0:00:04]} 8. Ne2 {[%emt 0:00:35]} Qb6 {[%emt 0:00:30]} 9. O-O {[%emt 0:01:44]} cxd4 {[%emt 0:00:05]} 10. Nxd4 {[%emt 0:00:48]} Bd7 {[%emt 0:00:42]} 11. c3 {[%emt 0:00:20]} Be7 {[%emt 0:00:59]} 12. Qb3 {[%emt 0:00:59]} O-O-O {[%emt 0:02:10]} 13. Bf4 {[%emt 0:01:11]} Nd5 {[%emt 0:00:44]} 14. Bxd5 {[%emt 0:02:09]} exd5 {[%emt 0:00:04]} 15. Qxd5 {[%emt 0:00:20]} Bh3 {[%emt 0:02:28]} 16. Qc4+ {[%emt 0:00:44]} Qc5 {[%emt 0:00:14]} 17. Qxc5+ {[%emt 0:00:09]} Bxc5 {[%emt 0:00:02]} 18. Rfd1 {[%emt 0:00:02]} Rhe8 {[%emt 0:02:07]} 19. Be3 {[%emt 0:00:14]} Bxd4 {[%emt 0:02:54]} 20. cxd4 {[%emt 0:00:25]} Kd7 {[%emt 0:00:03]} 21. d5 {[%emt 0:02:01]} a6 {[%emt 0:00:20]} 22. Rd4 {[%emt 0:01:02]} Rc8 {[%emt 0:00:47]} 23. a4 {[%emt 0:00:29]} Re7 {[%emt 0:01:20]} 24. Rb4 {[%emt 0:01:04]} Ke8 {[%emt 0:00:16]} 25. d6 {[%emt 0:00:21]} Rd7 {[%emt 0:00:02]} 26. Rb6 {[%emt 0:00:16]} Rc2 {[%emt 0:00:41]} 27. Rc1 {[%emt 0:01:12]} Re2 {[%emt 0:00:43]} 28. a5 {[%emt 0:00:36]} f6 {[%emt 0:00:02]} 29. Bc5 {[%emt 0:00:31]} Kf7 {[%emt 0:00:28]} 30. Rb3 {[%emt 0:00:13]} Ke6 {[%emt 0:00:42]} 31. Re3+ {[%emt 0:00:09]} Rxe3 {[%emt 0:00:01]} 32. fxe3 {[%emt 0:00:01]} Bf5 {[%emt 0:00:10]} 33. Kf2 {[%emt 0:00:24]} Be4 {[%emt 0:00:01]} 34. b4 {[%emt 0:00:03]} g5 {[%emt 0:00:16]} 35. Rc4 {[%emt 0:00:03]} Bd5 {[%emt 0:00:19]} 36. Rd4 {[%emt 0:00:01]} f5 {[%emt 0:00:17]} 37. g4 {[%emt 0:00:11]} Bc6 {[%emt 0:00:02]} 38. gxf5+ {[%emt 0:00:27]} Kxf5 {[%emt 0:00:01]} 39. h4 {[%emt 0:00:18]} h6 {[%emt 0:00:13]} 40. Kg3 {[%emt 0:00:16]} Be4 {[%emt 0:00:15]} 41. Rd2 {[%emt 0:00:06]} Rg7 {[%emt 0:00:12]} 42. d7 {[%emt 0:00:17]} gxh4+ {[%emt 0:00:32]} 43. Kh2 {[%emt 0:00:07]} Bc6 1-0

[Event "RUS-ch Men Rapid 2019"]
[Site "Sochi"]
[Date "2019.10.15"]
[Round "2.27"]
[White "Gurvich, Vitaly"]
[Black "Khegay, Dmitriy"]
[Result "0-1"]
[ECO "A40"]
[WhiteElo "2278"]
[BlackElo "2509"]
[Annotator "ChessBase"]
[PlyCount "92"]
[EventDate "2019.10.15"]
[EventType "swiss"]
[EventCountry "RUS"]
[SourceTitle "playchess.com"]
[Source "ChessBase"]
[SourceQuality "1"]
[TimeControl "900+10"]

1. d4 g6 2. c4 Bg7 3. e4 c5 4. d5 d6 5. Nf3 e6 6. Nc3 Ne7 7. Be2 a6 8. a4 h6 9. Be3 g5 10. h4 g4 11. Nd2 h5 12. Nf1 Ng6 13. Bg5 Bf6 14. Bxf6 Qxf6 15. g3 O-O 16. Ne3 Qe5 17. Bxg4 hxg4 18. h5 Ne7 19. Nxg4 Qd4 20. Qc1 f5 21. Qg5+ Qg7 22. Qxg7+ Kxg7 23. exf5 Nxf5 24. O-O-O Nd4 25. h6+ Kh8 26. f4 e5 27. Ne3 Nf5 28. Nxf5 Bxf5 29. fxe5 dxe5 30. g4 Bg6 31. Rde1 Nd7 32. Rhf1 Bd3 33. Rxf8+ Rxf8 34. Kd2 Bg6 35. b3 Rf4 36. g5 Rg4 37. d6 Rxg5 38. Nd5 Kh7 39. a5 Rg4 40. Kc3 Rd4 41. Rf1 Kxh6 42. Rh1+ Kg7 43. Rg1 Kf7 44. b4 Rd3+ 45. Kb2 cxb4 46. Rg5 Nc5 0-1

[Event "RUS-ch Men Rapid 2019"]
[Site "Sochi"]
[Date "2019.10.15"]
[Round "2.28"]
[White "Faizrakhmanov, Ramil"]
[Black "Gabitov, Ruslan"]
[Result "0-1"]
[ECO "A48"]
[WhiteElo "2434"]
[BlackElo "2172"]
[Annotator "NA"]
[PlyCount "66"]
[EventDate "2019.10.15"]
[EventType "swiss"]
[EventCountry "RUS"]
[SourceTitle "playchess.com"]
[Source "ChessBase"]
[SourceQuality "1"]
[TimeControl "900+10"]

1. d4 {[%emt 0:00:00]} Nf6 {[%emt 0:00:00]} 2. Nf3 {[%emt 0:00:00]} g6 {[%emt 0:00:00]} 3. e3 {[%emt 0:00:00]} Bg7 {[%emt 0:00:00]} 4. Be2 {[%emt 0:00:00]} O-O {[%emt 0:00:05]} 5. O-O {[%emt 0:00:01]} d6 {[%emt 0:00:04]} 6. b3 {[%emt 0:00:03]} Nfd7 {[%emt 0:01:03]} 7. Bb2 {[%emt 0:00:09]} e5 {[%emt 0:00:12]} 8. c4 {[%emt 0:00:04]} Nc6 {[%emt 0:01:15]} 9. Nc3 {[%emt 0:00:06]} Re8 {[%emt 0:00:02]} 10. h3 {[%emt 0:00:09]} Nf6 {[%emt 0:00:59]} 11. d5 {[%emt 0:02:18]} Ne7 {[%emt 0:00:12]} 12. b4 {[%emt 0:00:25]} Nd7 {[%emt 0:03:16]} 13. Nd2 {[%emt 0:00:11]} f5 {[%emt 0:01:01]} 14. Nb3 {[%emt 0:00:06]} Nf6 {[%emt 0:00:24]} 15. a4 {[%emt 0:00:35]} g5 {[%emt 0:00:17]} 16. f4 {[%emt 0:00:35]} gxf4 {[%emt 0:02:42]} 17. exf4 {[%emt 0:00:04]} exf4 {[%emt 0:00:05]} 18. Bd3 {[%emt 0:02:26]} Ng6 {[%emt 0:00:09]} 19. Qc2 {[%emt 0:02:10]} Ne4 {[%emt 0:00:16]} 20. Ne2 {[%emt 0:00:04]} Bxb2 {[%emt 0:01:20]} 21. Qxb2 {[%emt 0:00:01]} Qg5 {[%emt 0:00:15]} 22. Nbd4 {[%emt 0:01:30]} f3 {[%emt 0:00:32]} 23. Rxf3 {[%emt 0:02:39]} Nh4 {[%emt 0:00:01]} 24. Nc1 {[%emt 0:00:23]} Nxf3+ {[%emt 0:00:26]} 25. Nxf3 {[%emt 0:00:01]} Qe3+ {[%emt 0:00:12]} 26. Kh2 {[%emt 0:00:07]} Qf4+ {[%emt 0:00:25]} 27. Kg1 {[%emt 0:00:06]} Ng5 {[%emt 0:00:13]} 28. Be2 {[%emt 0:00:46]} Nxf3+ {[%emt 0:00:04]} 29. Bxf3 {[%emt 0:00:40]} Re1+ {[%emt 0:00:09]} 30. Kf2 {[%emt 0:00:01]} Qe3+ {[%emt 0:00:18]} 31. Kg3 {[%emt 0:00:02]} f4+ {[%emt 0:00:09]} 32. Kh4 {[%emt 0:00:01]} Qe7+ {[%emt 0:00:05]} 33. Kh5 {[%emt 0:00:02]} Re5+ {[%emt 0:00:05]} 0-1

[Event "RUS-ch Men Rapid 2019"]
[Site "Sochi"]
[Date "2019.10.15"]
[Round "2.29"]
[White "Goltsev, Dmitry"]
[Black "Potapov, Pavel"]
[Result "0-1"]
[ECO "B32"]
[WhiteElo "2309"]
[BlackElo "2489"]
[Annotator "ChessBase"]
[PlyCount "82"]
[EventDate "2019.10.15"]
[EventType "swiss"]
[EventCountry "RUS"]
[SourceTitle "playchess.com"]
[Source "ChessBase"]
[SourceQuality "1"]
[TimeControl "900+10"]

1. e4 {[%emt 0:00:00]} c5 {[%emt 0:00:00]} 2. Nf3 {[%emt 0:00:00]} Nc6 {[%emt 0:00:00]} 3. d4 {[%emt 0:00:00]} cxd4 {[%emt 0:00:00]} 4. Nxd4 {[%emt 0:00:00]} e5 {[%emt 0:00:00]} 5. Nb5 {[%emt 0:00:01]} d6 {[%emt 0:00:00]} 6. N1c3 {[%emt 0:00:03]} a6 {[%emt 0:00:00]} 7. Na3 {[%emt 0:00:02]} Be7 {[%emt 0:00:05]} 8. Nd5 {[%emt 0:00:21]} Nf6 {[%emt 0:00:03]} 9. Nxf6+ {[%emt 0:00:11]} Bxf6 {[%emt 0:00:01]} 10. Nc4 {[%emt 0:00:17]} Be7 {[%emt 0:00:02]} 11. Be3 {[%emt 0:00:57]} Be6 {[%emt 0:00:30]} 12. Nb6 {[%emt 0:00:02]} Rb8 {[%emt 0:00:02]} 13. Nd5 {[%emt 0:00:32]} O-O {[%emt 0:00:52]} 14. Qd2 {[%emt 0:00:17]} b5 {[%emt 0:02:46]} 15. Rd1 {[%emt 0:01:11]} Bxd5 {[%emt 0:00:02]} 16. Qxd5 {[%emt 0:00:03]} Nd4 {[%emt 0:03:57]} 17. Bxd4 {[%emt 0:00:34]} exd4 {[%emt 0:00:01]} 18. Rxd4 {[%emt 0:01:43]} Bf6 {[%emt 0:00:07]} 19. Rb4 {[%emt 0:00:38]} Rc8 {[%emt 0:00:21]} 20. Bd3 {[%emt 0:00:25]} Qa5 {[%emt 0:03:04]} 21. Qb3 {[%emt 0:00:25]} Bd4 {[%emt 0:00:02]} 22. O-O {[%emt 0:01:08]} Bc5 {[%emt 0:00:02]} 23. a3 {[%emt 0:00:02]} Bxb4 {[%emt 0:00:17]} 24. axb4 {[%emt 0:00:02]} Qb6 {[%emt 0:00:01]} 25. c3 {[%emt 0:01:25]} Rfe8 {[%emt 0:00:08]} 26. Qc2 {[%emt 0:00:44]} h6 {[%emt 0:00:07]} 27. Rd1 {[%emt 0:00:29]} Rcd8 {[%emt 0:00:17]} 28. Be2 {[%emt 0:00:09]} Re5 {[%emt 0:00:38]} 29. Bf3 {[%emt 0:00:12]} a5 {[%emt 0:01:24]} 30. bxa5 {[%emt 0:00:46]} Qxa5 {[%emt 0:00:01]} 31. g3 {[%emt 0:00:02]} b4 {[%emt 0:00:12]} 32. cxb4 {[%emt 0:01:06]} Qxb4 {[%emt 0:00:04]} 33. Qc7 {[%emt 0:00:06]} Qa5 {[%emt 0:01:36]} 34. Qb7 {[%emt 0:02:18]} Rb5 {[%emt 0:00:41]} 35. Qe7 {[%emt 0:00:41]} Rxb2 {[%emt 0:00:38]} 36. e5 {[%emt 0:01:59]} Qb6 {[%emt 0:00:23]} 37. Kh1 {[%emt 0:00:11]} Rf8 {[%emt 0:00:18]} 38. Rg1 {[%emt 0:01:57]} Qxf2 {[%emt 0:00:20]} 39. Bg2 {[%emt 0:00:02]} dxe5 {[%emt 0:00:16]} 40. Qxe5 {[%emt 0:00:01]} Re2 {[%emt 0:00:03]} 41. Qd5 {[%emt 0:00:04]} Re1 {[%emt 0:00:05]} 0-1